fUSD/lending_fUSD_20240531
["ID","MTS","AMOUNT","RATE_DAILY","PERIOD"]
[328315194,1717157433006,-292.63,0.00031536,2]
[328315195,1717157433015,-200.0,0.00031546,2]
[328315196,1717157433024,-385.6,0.00031584,2]
[328315197,1717157433034,-548.70135202,0.000316,5]
[328315198,1717157433042,-691.2805,0.000316,2]
[328315199,1717157433052,-1000.0,0.000316,2]
[328315200,1717157433061,-175.91565011,0.000316,10]
[328315201,1717157433070,-1800.0,0.000316,11]
[328315202,1717157433080,-3975.4398,0.00031616,10]
[328315203,1717157433089,-500.0,0.00031641,2]
[328315204,1717157433098,-500.0,0.00031641,2]
[328315205,1717157433107,-500.0,0.00031641,2]
[328315206,1717157433117,-500.0,0.00031641,2]
[328315207,1717157433127,-500.0,0.00031641,2]
[328315208,1717157433136,-350.5321,0.00031641,2]
[328315209,1717157433146,-27412.07354826,0.000317,2]
[328315216,1717157438357,-271.54074008,0.000317,2]
[328315217,1717157438369,-267.4029094,0.000317,2]
[328315218,1717157438416,-545.03939917,0.000317,2]
[328315219,1717157438428,-476.10410558,0.000317,2]
[328315220,1717157438485,-873.81182588,0.000317,2]
[328315221,1717157438497,-21144.1837193,0.000317,2]
[328315222,1717157438509,-1171.11856861,0.000317,2]
[328315223,1717157438543,-2495.0,0.000317,2]
[328315224,1717157438554,-45343.72518372,0.000317,2]
[328315225,1717157438564,-103239.92486638,0.000317,2]
[328315226,1717157438575,-1189.95168107,0.000317,2]
[328315227,1717157438593,-1336.77449173,0.000317,2]
[328315228,1717157438604,-8996.79579999,0.000317,2]
[328315229,1717157438624,-368.4034386,0.000317,2]
[328315249,1717157440861,-13938.34577262,0.000317,2]
[328315250,1717157441251,-47516.17506997,0.000317,2]
[328315251,1717157441420,-5302.63835445,0.000317,2]
[328315252,1717157441431,-934.76260631,0.000317,2]
[328315253,1717157441442,-1433.79865,0.000317,2]
[328315313,1717157443399,-7348.89896676,0.000317,2]
[328315314,1717157443423,-4043.23692891,0.000317,2]
[328315315,1717157443846,-26285.53627321,0.000317,2]
[328315316,1717157443858,-1728.939,0.000317,2]
[328315317,1717157443868,-3700.0,0.000317,11]
[328315318,1717157443877,-569.21297184,0.000317,3]
[328315319,1717157443886,-164.99275897,0.000317,2]
[328315320,1717157443895,-412.17126416,0.00031775,2]
[328315321,1717157443906,-1361.43772127,0.00031786,4]
[328315323,1717157443915,-264.73513153,0.00031786,4]
[328315325,1717157443924,-2000.0,0.00031786,2]
[328315327,1717157443933,-200.0,0.00031786,2]
[328315329,1717157443943,-158.99557848,0.00031787,7]
[328315330,1717157443952,-240.93556492,0.00031798,7]
[328315332,1717157443961,-1000.0,0.00031799,4]
[328315334,1717157443971,-4233.54735962,0.00031799,2]
[328315336,1717157443980,-150.0,0.00031799,2]
[328315338,1717157443990,-300.0,0.00031799,2]
[328315340,1717157444000,-450.0,0.00031799,2]
[328315342,1717157444009,-600.0,0.00031799,2]
[328315344,1717157444018,-750.0,0.00031799,2]
[328315347,1717157444028,-900.0,0.00031799,2]
[328315348,1717157444037,-30741.17004423,0.000318,2]
[328315350,1717157444049,-4889.45830044,0.000318,2]
[328315352,1717157444060,-1746.97315528,0.000318,2]
[328315353,1717157444072,-2408.26478785,0.000318,2]
[328315354,1717157444083,-4817.74254891,0.000318,2]
[328315373,1717157447800,-578.18174443,0.00013556,2]
[328315374,1717157447810,-232.06125557,0.000318,2]
[328315375,1717157447912,-353.41032198,0.000318,2]
[328315379,1717157941167,150.0,0.00031,30]
[328315380,1717158004497,172.29493442,0.00031,30]
[328315381,1717158355128,-542.00347646,0.00016906,2]
[328315382,1717158355147,-155.0,0.00016907,2]
[328315383,1717158355167,-237.7692352,0.00016908,2]
[328315384,1717158355186,-376.47199888,0.00016908,2]
[328315385,1717158404409,-738.80885883,0.00033298,60]
[328315386,1717158431627,-202.45115894,0.00032877,30]
[328315387,1717158432697,-1391.33227191,0.000329,30]
[328315412,1717158633080,-155.0,0.00016549,2]
[328315413,1717158633089,-1303.0833515,0.00016549,2]
[328315414,1717158633101,-80.38645006,0.00016549,2]
[328315415,1717158633110,-603.594073,0.0001655,2]
[328315416,1717158633120,-1350.53229018,0.00016631,2]
[328315417,1717158633135,-530.0,0.00016631,2]
[328315418,1717158633148,-3692.82821371,0.00016631,2]
[328315419,1717158633160,-620.00333459,0.00016632,2]
[328315420,1717158633169,-687.51527312,0.00016632,2]
[328315421,1717158633179,-624.74565801,0.00016633,2]
[328315422,1717158633194,-155.0,0.00016634,2]
[328315423,1717158633203,-345.11104325,0.00016635,2]
[328315424,1717158633212,-268.20766282,0.00016635,2]
[328315425,1717158633222,-410.5918966,0.00016635,2]
[328315426,1717158633232,-150.0,0.00016636,2]
[328315427,1717158633242,-1065.89322203,0.00016636,2]
[328315428,1717158633251,-481.22492057,0.00017093,2]
[328315429,1717158633260,-300.0,0.00017143,2]
[328315430,1717158633269,-499.99,0.00017143,2]
[328315431,1717158633278,-999.99,0.00017143,2]
[328315432,1717158633287,-2024.70255243,0.00017255,2]
[328315433,1717158633295,-4923.62622287,0.00017256,2]
[328315434,1717158633307,-243.97320603,0.00017256,2]
[328315435,1717158633317,-287.80339298,0.00023332,2]
[328315436,1717158633328,-9712.19660702,0.00023332,2]
[328315437,1717158633338,-156.11,0.00024384,2]
[328315438,1717158633347,-261.81,0.00024473,2]
[328315439,1717158633356,-311.38420879,0.00024788,2]
[328315440,1717158633366,-329.269,0.00024797,2]
[328315441,1717158633375,-2564.14651886,0.00024797,2]
[328315442,1717158633386,-4020.05519747,0.00024797,2]
[328315444,1717158633397,-2385.08028367,0.00024797,2]
[328315446,1717158633406,-1654.833,0.00024797,2]
[328315447,1717158633416,-442.415,0.00024797,2]
[328315448,1717158633425,-617.292,0.00024797,2]
[328315449,1717158633434,-250.0,0.00025303,2]
[328315451,1717158633449,-455.36,0.00025569,2]
[328315453,1717158633458,-171.05,0.0002575,2]
[328315455,1717158633467,-548.70135201,0.00025939,4]
[328315457,1717158633476,-16146.36,0.00026039,2]
[328315459,1717158633484,-250.0,0.00026052,2]
[328315461,1717158633493,-437.92,0.00026157,2]
[328315463,1717158633504,-261.81,0.00026737,2]
[328315465,1717158633513,-169.93,0.00026864,2]
[328315467,1717158633522,-651.0,0.000278,4]
[328315469,1717158633532,-455.36,0.00028765,2]
[328315471,1717158633543,-437.92,0.00028897,2]
[328315473,1717158633552,-261.81,0.00029,2]
[328315475,1717158633561,-751.45358305,0.00029587,2]
[328315477,1717158633570,-200.0,0.00030845,2]
[328315479,1717158633579,-156.11,0.00031007,2]
[328315481,1717158633588,-1170.76249976,0.0003123,4]
[328315483,1717158633598,-155.52371919,0.00031261,7]
[328315485,1717158633607,-261.81,0.00031264,2]
[328315487,1717158633616,-2559.31666057,0.000313,2]
[328315489,1717158633626,-778.16357,0.0003148,2]
[328315491,1717158633635,-7000.0,0.000315,2]
[328315493,1717158633645,-500.0,0.00031546,2]
[328315494,1717158633654,-155.52371919,0.00031581,7]
[328315495,1717158633664,-150.66714897,0.00031588,7]
[328315496,1717158633673,-548.70135201,0.000316,5]
[328315497,1717158633683,-247.5684,0.000316,2]
[328315498,1717158633697,-2786.7008,0.000316,2]
[328315499,1717158633706,-155.48332145,0.000316,10]
[328315500,1717158633715,-1500.0,0.000316,11]
[328315501,1717158633724,-412.17126416,0.00031636,2]
[328315502,1717158633733,-437.92,0.00031636,2]
[328315503,1717158633742,-1000.0,0.00031641,2]
[328315504,1717158633751,-1000.0,0.00031641,2]
[328315505,1717158633760,-1000.0,0.00031641,2]
[328315506,1717158633769,-1000.0,0.00031641,2]
[328315507,1717158633779,-1000.0,0.00031641,2]
[328315508,1717158633788,-1000.0,0.00031641,2]
[328315509,1717158633797,-1000.0,0.00031641,2]
[328315510,1717158633806,-1000.0,0.00031641,2]
[328315511,1717158633815,-1000.0,0.00031641,2]
[328315512,1717158633824,-1000.0,0.00031641,2]
[328315513,1717158633834,-436.4192,0.00031641,2]
[328315514,1717158633843,-333.17681456,0.000317,4]
[328315515,1717158633852,-155.0,0.000317,4]
[328315516,1717158633861,-410.2235979,0.000317,4]
[328315517,1717158633871,-79046.46271354,0.000317,2]
[328315518,1717158633883,-517.0,0.000317,2]
[328315519,1717158633906,-380.82981456,0.000317,2]
[328315520,1717158633917,-113110.69540536,0.000317,2]
[328315525,1717158638702,-155.0,0.00016548,2]
[328315526,1717158638712,-327.42148466,0.00016548,2]
[328315527,1717158638722,-215.84608534,0.00024797,2]
[328315528,1717158638733,-1008.15391466,0.00024797,2]
[328315529,1717158638743,-189.71124482,0.000316,10]
[328315530,1717158638755,-824.23,0.0003169,3]
[328315531,1717158638764,-578.90484052,0.000317,2]
[328315532,1717158638786,-700.0,0.000317,2]
[328315533,1717158638839,-6501.71448749,0.000317,2]
[328315534,1717158639024,-10333.62741075,0.000317,2]
[328315537,1717158639037,-12599.52556417,0.000317,2]
[328315539,1717158639050,-347.93,0.000317,2]
[328315622,1717158640559,-763.66000001,0.000317,2]
[328315624,1717158640570,-1724.83407041,0.000317,2]
[328315658,1717158641204,-584.00738402,0.000317,2]
[328315659,1717158641341,-301.394501,0.000317,2]
[328315660,1717158641353,-13817.6793821,0.000317,2]
[328315661,1717158641365,-87638.09070238,0.000317,2]
[328315662,1717158641375,-213.15222738,0.000317,3]
[328315663,1717158641385,-166.39466723,0.000317,2]
[328315664,1717158641394,-258.80097287,0.000317,2]
[328315665,1717158641405,-3100.0,0.000317,11]
[328315666,1717158641414,-151.0,0.0003179,2]
[328315667,1717158641424,-151.0,0.0003179,2]
[328315668,1717158641433,-517.19519101,0.0003179,2]
[328315669,1717158641445,-399.70222016,0.00031799,2]
[328315670,1717158641455,-150.0,0.00031799,2]
[328315671,1717158641464,-300.0,0.00031799,2]
[328315672,1717158641473,-450.0,0.00031799,2]
[328315673,1717158641482,-600.0,0.00031799,2]
[328315674,1717158641491,-750.0,0.00031799,2]
[328315675,1717158641500,-900.0,0.00031799,2]
[328315676,1717158641509,-16940.99769726,0.000318,2]
[328315677,1717158641521,-3662.65,0.000318,2]
[328315685,1717158643674,-189.71124474,0.00031778,10]
[328315688,1717158643685,-208.05997526,0.000318,2]
[328315691,1717158643820,-216278.49610697,0.000318,2]
[328315692,1717158644080,-387590.25779111,0.000318,2]
[328315693,1717158644091,-177863.26844301,0.000318,2]
[328315694,1717158644101,-487.0,0.000318,16]
[328315695,1717158644110,-160.0,0.000318,4]
[328315696,1717158644120,-299563.30198887,0.000318,2]
[328315697,1717158644130,-21401.37059882,0.000318,4]
[328315698,1717158644139,-3178.09,0.000318,5]
[328315699,1717158644150,-151.0,0.000318,7]
[328315700,1717158644164,-153.01185,0.000318,7]
[328315701,1717158644174,-151.0,0.000318,7]
[328315702,1717158644183,-151.0,0.000318,7]
[328315703,1717158644195,-151.0,0.000318,7]
[328315704,1717158644206,-151.0,0.000318,7]
[328315706,1717158644216,-151.0,0.000318,7]
[328315707,1717158644225,-165.661515,0.000318,7]
[328315708,1717158644235,-151.0,0.000318,7]
[328315709,1717158644245,-151.0,0.000318,7]
[328315710,1717158644254,-151.0,0.000318,7]
[328315711,1717158644264,-151.0,0.000318,7]
[328315712,1717158644273,-151.0,0.000318,7]
[328315713,1717158644283,-151.0,0.000318,7]
[328315714,1717158644292,-449.355655,0.000318,7]
[328315715,1717158644301,-449.355655,0.000318,7]
[328315716,1717158644311,-199.269397,0.000318,7]
[328315717,1717158644320,-151.0,0.000318,7]
[328315718,1717158644330,-151.0,0.000318,7]
[328315719,1717158644339,-155.48332142,0.000318,10]
[328315720,1717158644349,-4700.0,0.000318,11]
[328315721,1717158644358,-151.0,0.000318,7]
[328315722,1717158644367,-189.798966,0.000318,7]
[328315723,1717158644376,-286.363145,0.000318,7]
[328315724,1717158644386,-151.0,0.000318,7]
[328315725,1717158644395,-151.0,0.000318,7]
[328315726,1717158644404,-151.0,0.000318,7]
[328315727,1717158644413,-163.34317,0.000318,7]
[328315728,1717158644423,-175.838398,0.000318,7]
[328315729,1717158644432,-175.838398,0.000318,7]
[328315730,1717158644444,-175.838398,0.000318,7]
[328315731,1717158644459,-175.838398,0.000318,7]
[328315732,1717158644469,-151.0,0.000318,7]
[328315733,1717158644480,-161.286905,0.000318,7]
[328315734,1717158644490,-151.0,0.000318,7]
[328315735,1717158644500,-155.393948,0.000318,7]
[328315736,1717158644510,-151.0,0.000318,7]
[328315737,1717158644521,-151.0,0.000318,7]
[328315738,1717158644531,-151.0,0.000318,7]
[328315739,1717158644547,-151.0,0.000318,7]
[328315740,1717158644557,-206.079589,0.000318,7]
[328315741,1717158644568,-151.0,0.000318,7]
[328315742,1717158644578,-167.802978,0.000318,7]
[328315743,1717158644588,-161.980978,0.000318,7]
[328315744,1717158644598,-151.0,0.000318,7]
[328315745,1717158644608,-151.0,0.000318,7]
[328315746,1717158644618,-151.0,0.000318,7]
[328315747,1717158644628,-151.0,0.000318,7]
[328315748,1717158644638,-151.0,0.000318,7]
[328315749,1717158644648,-151.0,0.000318,7]
[328315750,1717158644657,-151.0,0.000318,7]
[328315751,1717158644667,-169.539845,0.000318,7]
[328315752,1717158644677,-553.747402,0.000318,7]
[328315753,1717158644686,-553.747402,0.000318,7]
[328315754,1717158644702,-553.747402,0.000318,7]
[328315755,1717158644712,-553.747402,0.000318,7]
[328315756,1717158644721,-156.111777,0.000318,7]
[328315757,1717158644731,-150.0,0.000318,7]
[328315758,1717158644740,-272.686203,0.000318,7]
[328315759,1717158644749,-151.0,0.000318,7]
[328315760,1717158644758,-151.0,0.000318,7]
[328315761,1717158644768,-10000.0,0.000318,7]
[328315762,1717158644777,-10000.0,0.000318,7]
[328315763,1717158644786,-10000.0,0.000318,7]
[328315764,1717158644796,-10000.0,0.000318,7]
[328315765,1717158644806,-6300.0,0.000319,11]
[328315766,1717158644816,-277.34557317,0.000319,2]
[328315767,1717158644825,-1468.61621529,0.000319,2]
[328315768,1717158644835,-455.36,0.00031961,2]
[328315769,1717158644845,-258.80097283,0.00031969,2]
[328315770,1717158644855,-320.0,0.0003197,15]
[328315771,1717158644866,-227.0,0.0003197,15]
[328315772,1717158644875,-320.0,0.0003198,15]
[328315773,1717158644885,-227.0,0.0003198,15]
[328315774,1717158644895,-320.0,0.0003199,15]
[328315775,1717158644906,-227.0,0.0003199,15]
[328315776,1717158644916,-151.0,0.0003199,7]
[328315777,1717158644926,-151.0,0.0003199,2]
[328315778,1717158644936,-151.0,0.0003199,2]
[328315779,1717158644950,-151.0,0.0003199,2]
[328315780,1717158644959,-10000.0,0.0003199,7]
[328315781,1717158644969,-517.19519101,0.0003199,2]
[328315782,1717158644978,-10000.0,0.0003199,7]
[328315783,1717158644988,-155.52371919,0.00031996,7]
[328315784,1717158644997,-1050.0,0.00031999,2]
[328315785,1717158645007,-265.0,0.00031999,2]
[328315786,1717158645017,-897.69917827,0.00032,2]
[328315787,1717158645027,-963524.16,0.00032,5]
[328315788,1717158645036,-1053.13009723,0.00032,4]
[328315789,1717158645046,-345.0,0.00032,4]
[328315790,1717158645056,-99957.0,0.00032,4]
[328315791,1717158645065,-151.0,0.00032,7]
[328315792,1717158645076,-151.0,0.00032,7]
[328315793,1717158645086,-151.0,0.00032,7]
[328315794,1717158645096,-151.0,0.00032,7]
[328315795,1717158645105,-151.0,0.00032,7]
[328315796,1717158645115,-177.559722,0.00032,7]
[328315797,1717158645125,-153.244089,0.00032,7]
[328315798,1717158645136,-151.0,0.00032,7]
[328315799,1717158645147,-177.398713,0.00032,7]
[328315800,1717158645162,-219.344539,0.00032,7]
[328315801,1717158645171,-151.0,0.00032,7]
[328315802,1717158645181,-151.0,0.00032,7]
[328315803,1717158645191,-151.0,0.00032,7]
[328315804,1717158645204,-151.0,0.00032,7]
[328315805,1717158645213,-151.0,0.00032,7]
[328315806,1717158645222,-151.0,0.00032,7]
[328315807,1717158645232,-151.0,0.00032,7]
[328315808,1717158645242,-151.0,0.00032,7]
[328315809,1717158645252,-151.0,0.00032,7]
[328315810,1717158645262,-151.0,0.00032,7]
[328315811,1717158645271,-151.0,0.00032,7]
[328315812,1717158645281,-151.0,0.00032,7]
[328315813,1717158645291,-449.355655,0.00032,7]
[328315814,1717158645300,-449.355655,0.00032,7]
[328315815,1717158645310,-449.355655,0.00032,7]
[328315816,1717158645319,-449.355655,0.00032,7]
[328315817,1717158645328,-178.393195,0.00032,7]
[328315818,1717158645338,-151.0,0.00032,7]
[328315819,1717158645348,-151.0,0.00032,7]
[328315820,1717158645358,-155.48332142,0.00032,10]
[328315821,1717158645367,-151.0,0.00032,7]
[328315822,1717158645378,-151.0,0.00032,7]
[328315823,1717158645388,-175.838398,0.00032,7]
[328315824,1717158645397,-175.838398,0.00032,7]
[328315825,1717158645407,-175.838398,0.00032,7]
[328315826,1717158645416,-175.838398,0.00032,7]
[328315828,1717158645426,-151.0,0.00032,7]
[328315829,1717158645435,-151.0,0.00032,7]
[328315830,1717158645447,-151.0,0.00032,7]
[328315831,1717158645457,-151.0,0.00032,7]
[328315832,1717158645466,-151.0,0.00032,7]
[328315833,1717158645475,-151.0,0.00032,7]
[328315834,1717158645485,-151.0,0.00032,7]
[328315835,1717158645494,-151.0,0.00032,7]
[328315836,1717158645504,-151.0,0.00032,7]
[328315837,1717158645513,-151.0,0.00032,7]
[328315838,1717158645524,-553.747402,0.00032,7]
[328315839,1717158645534,-553.747402,0.00032,7]
[328315840,1717158645544,-553.747402,0.00032,7]
[328315841,1717158645554,-553.747402,0.00032,7]
[328315842,1717158645564,-151.0,0.00032,7]
[328315843,1717158645573,-151.0,0.00032,7]
[328315844,1717158645582,-10000.0,0.00032,7]
[328315845,1717158645592,-10000.0,0.00032,7]
[328315846,1717158645601,-10000.0,0.00032,7]
[328315847,1717158645611,-10000.0,0.00032,7]
[328315848,1717158645620,-151.24,0.00032133,2]
[328315849,1717158645630,-150.0,0.00032133,2]
[328315850,1717158645639,-150.0,0.00032133,2]
[328315851,1717158645649,-150.0,0.00032133,2]
[328315852,1717158645659,-155.48332142,0.000322,10]
[328315853,1717158645668,-258.80097283,0.00032238,2]
[328315854,1717158645677,-151.0,0.000323,7]
[328315855,1717158645687,-192.92941,0.000323,7]
[328315856,1717158645701,-151.0,0.000323,7]
[328315857,1717158645710,-7800.0,0.000323,11]
[328315858,1717158645719,-900.0,0.00032323,9]
[328315859,1717158645729,-260.0602241,0.000324,2]
[328315860,1717158645739,-151.0,0.000324,7]
[328315861,1717158645748,-151.0,0.000324,7]
[328315863,1717158645759,-151.0,0.000324,7]
[328315864,1717158645770,-449.355655,0.000324,7]
[328315865,1717158645780,-449.355655,0.000324,7]
[328315866,1717158645789,-151.0,0.000324,7]
[328315867,1717158645799,-1500.0,0.000324,11]
[328315868,1717158645808,-155.48332142,0.000324,10]
[328315869,1717158645825,-151.0,0.000324,7]
[328315870,1717158645838,-175.838398,0.000324,7]
[328315871,1717158645848,-175.838398,0.000324,7]
[328315872,1717158646028,-151.0,0.000324,7]
[328315873,1717158646039,-151.0,0.000324,7]
[328315874,1717158646048,-151.0,0.000324,7]
[328315875,1717158646057,-151.0,0.000324,7]
[328315876,1717158646067,-151.0,0.000324,7]
[328315877,1717158646076,-553.747402,0.000324,7]
[328315878,1717158646086,-553.747402,0.000324,7]
[328315879,1717158646095,-156.331589,0.000324,7]
[328315880,1717158646104,-10000.0,0.000324,7]
[328315881,1717158646113,-10000.0,0.000324,7]
[328315882,1717158646123,-151.0,0.00032433,7]
[328315883,1717158646132,-151.0,0.00032433,7]
[328315884,1717158646141,-180.36986574,0.00032471,7]
[328315885,1717158646152,-1500.0,0.000325,11]
[328315886,1717158646165,-258.80097283,0.00032507,2]
[328315887,1717158646175,-251.87828571,0.00032545,4]
[328315888,1717158646184,-277.34557316,0.0003255,2]
[328315889,1717158646198,-1468.61621527,0.0003255,2]
[328315890,1717158646207,-151.0,0.00032566,7]
[328315891,1717158646217,-5000.0,0.0003257,2]
[328315892,1717158646227,-168.5365863,0.0003259,2]
[328315893,1717158646237,-1500.0,0.000326,11]
[328315894,1717158646247,-155.48332142,0.000326,10]
[328315895,1717158646256,-153.25751709,0.0003267,7]
[328315896,1717158646266,-1500.0,0.000327,11]
[328315897,1717158646275,-165.24587978,0.00032716,7]
[328315898,1717158646285,-1000.0,0.00032776,2]
[328315899,1717158646294,-258.80097283,0.00032776,2]
[328315900,1717158646303,-150.66714897,0.00032792,7]
[328315901,1717158646312,-500.0,0.00032794,3]
[328315902,1717158646322,-2151.0,0.000328,11]
[328315903,1717158646331,-155.48332142,0.000328,10]
[328315904,1717158646341,-500.0,0.00032803,3]
[328315905,1717158646350,-500.0,0.00032812,3]
[328315906,1717158646359,-500.0,0.00032821,3]
[328315907,1717158646369,-500.0,0.0003283,3]
[328315908,1717158646379,-500.0,0.00032838,3]
[328315909,1717158646389,-320.0,0.00032846,15]
[328315910,1717158646398,-227.0,0.00032846,15]
[328315911,1717158646407,-500.0,0.00032847,3]
[328315912,1717158646417,-320.0,0.00032856,15]
[328315913,1717158646428,-227.0,0.00032856,15]
[328315914,1717158646438,-227.0,0.00032856,15]
[328315915,1717158646452,-320.0,0.00032856,15]
[328315916,1717158646461,-500.0,0.00032856,3]
[328315917,1717158646470,-500.0,0.00032865,3]
[328315918,1717158646479,-151.0,0.00032866,2]
[328315919,1717158646488,-151.0,0.00032866,2]
[328315920,1717158646497,-517.19519101,0.00032866,2]
[328315921,1717158646507,-320.0,0.00032866,15]
[328315922,1717158646517,-227.0,0.00032866,15]
[328315923,1717158646527,-320.0,0.00032866,15]
[328315924,1717158646536,-227.0,0.00032866,15]
[328315925,1717158646546,-266.94001357,0.00032866,7]
[328315926,1717158646556,-500.0,0.00032874,3]
[328315927,1717158646565,-1232.50469214,0.00032874,4]
[328315928,1717158646575,-166.72253563,0.00032874,4]
[328315929,1717158646585,-156.59718149,0.00032874,4]
[328315930,1717158646594,-155.0,0.00032874,4]
[328315931,1717158646605,-155.0,0.00032874,4]
[328315932,1717158646615,-792.57388561,0.00032874,2]
[328315933,1717158646624,-208.9116436,0.00032874,4]
[328315934,1717158646634,-428.37179358,0.00032874,4]
[328315935,1717158646644,-1248.10825523,0.00032874,4]
[328315936,1717158646654,-644.15206775,0.00032874,4]
[328315937,1717158646663,-155.5707998,0.00032874,4]
[328315938,1717158646674,-245.29235978,0.00032874,4]
[328315939,1717158646685,-209.99387941,0.00032874,4]
[328315940,1717158646700,-235.97796973,0.00032874,4]
[328315941,1717158646711,-407.24197213,0.00032874,4]
[328315942,1717158646720,-203.29324448,0.00032874,4]
[328315943,1717158646731,-1501.33272399,0.00032874,4]
[328315944,1717158646741,-156.45668317,0.00032874,4]
[328315945,1717158646751,-275.7718618,0.00032874,4]
[328315946,1717158646761,-162.97578809,0.00032874,4]
[328315947,1717158646771,-4365.51239636,0.00032874,4]
[328315948,1717158646780,-1067.18004523,0.00032874,4]
[328315949,1717158646790,-157.8016636,0.00032874,4]
[328315950,1717158646799,-4748.08552782,0.00032874,4]
[328315951,1717158646809,-409.7134898,0.00032874,4]
[328315952,1717158646818,-156.21977078,0.00032874,4]
[328315953,1717158646828,-159.09027929,0.00032874,4]
[328315954,1717158646838,-654.83399276,0.00032874,4]
[328315955,1717158646848,-361.06846999,0.00032874,4]
[328315956,1717158646858,-285.87369064,0.00032874,4]
[328315957,1717158646867,-179.45642925,0.00032874,4]
[328315958,1717158646876,-156.37876789,0.00032874,4]
[328315959,1717158646886,-210.21403465,0.00032874,4]
[328315960,1717158646896,-1405.2838525,0.00032874,4]
[328315961,1717158646907,-463.40875225,0.00032874,4]
[328315962,1717158646916,-364.77108528,0.00032874,4]
[328315963,1717158646925,-155.0,0.00032874,4]
[328315964,1717158646934,-155.24268003,0.00032874,4]
[328315965,1717158646946,-179.31535052,0.00032874,4]
[328315966,1717158646955,-306.53561288,0.00032874,4]
[328315967,1717158646965,-276.57579353,0.00032874,4]
[328315968,1717158646974,-156.27381943,0.00032874,4]
[328315969,1717158646984,-250.05519525,0.00032874,4]
[328315970,1717158646993,-2813.98016787,0.00032874,4]
[328315971,1717158647002,-342.71883576,0.00032874,4]
[328315972,1717158647012,-12003.24557288,0.00032874,5]
[328315973,1717158647022,-505.69852393,0.00032874,4]
[328315974,1717158647031,-843.54058849,0.00032874,2]
[328315975,1717158647041,-155.41847104,0.00032874,4]
[328315976,1717158647050,-155.0,0.00032874,4]
[328315977,1717158647059,-248.92686412,0.00032874,4]
[328315978,1717158647069,-155.41908413,0.00032874,4]
[328315979,1717158647079,-448.29543392,0.00032874,2]
[328315980,1717158647089,-177.64313165,0.00032874,4]
[328315981,1717158647098,-169.47475386,0.00032874,4]
[328315982,1717158647107,-263.7229859,0.00032874,4]
[328315983,1717158647117,-4293.34952503,0.00032874,4]
[328315984,1717158647126,-155.49050948,0.00032874,4]
[328315985,1717158647135,-241.45051815,0.00032874,4]
[328315986,1717158647145,-1226.71869147,0.00032874,4]
[328315987,1717158647155,-155.8550765,0.00032874,4]
[328315988,1717158647165,-10950.42899306,0.00032874,4]
[328315989,1717158647176,-301.06984484,0.00032874,4]
[328315990,1717158647186,-167.54199647,0.00032874,4]
[328315991,1717158647201,-156.01882306,0.00032874,4]
[328315992,1717158647210,-207.32693695,0.00032874,4]
[328315993,1717158647219,-151.0,0.00032874,7]
[328315994,1717158647228,-151.0,0.00032874,7]
[328315995,1717158647238,-291.047833,0.00032874,7]
[328315996,1717158647247,-151.0,0.00032874,7]
[328315997,1717158647258,-151.0,0.00032874,7]
[328315998,1717158647267,-213.716526,0.00032874,7]